bitfinex/quotes_ETHUSD_20250106
["timestamp","ask_amount","ask_price","bid_price","bid_amount"]
[1736155709865,2.74295,3645.7,3644.8,2.64283229]
[1736155710158,0.8273,3645.9,3644.9,35.02865453]
[1736155710358,2.74305,3645.6,3644.9,35.02865453]
[1736155717467,0.55,3645.7,3644.9,35.02865453]
[1736155717762,2.74318,3645.4,3644.9,35.02865453]
[1736155723946,0.8139,3645.6,3644.9,35.02865453]
[1736155724262,3.557,3645.6,3644.9,35.02865453]
[1736155724663,4.253785,3645.6,3644.9,35.02865453]
[1736155726793,2.74314,3645.5,3644.9,35.02865453]
[1736155729392,1.510685,3645.6,3644.9,35.02865453]
[1736155729596,2.74319,3645.4,3644.9,35.02865453]
[1736155732804,2.74339,3645.2,3644.9,35.02865453]
[1736155737796,0.7688,3645.1,3644.9,35.02865453]
[1736155738106,4.48661839,3645.0,3644.9,0.02865453]
[1736155738393,3.29359,3644.9,3644.5,0.28610764]
[1736155738598,3.29359,3644.9,3644.6,35.0]
[1736155738842,3.85203165,3644.9,3644.6,35.02909211]
[1736155742922,3.30203165,3644.9,3644.6,35.02909211]
[1736155748315,0.55844165,3644.9,3644.6,35.02909211]
[1736155748518,2.74363,3644.8,3644.6,35.02909211]
[1736155749095,3.29371,3644.7,3644.6,35.02909211]
[1736155750631,2.86151,3645.0,3644.6,35.02909211]
[1736155751291,0.118,3645.0,3644.6,35.02909211]
[1736155751490,2.7436,3644.9,3644.6,35.02909211]
[1736155752416,2.7436,3644.9,3644.6,0.02909211]
[1736155758261,1.14880764,3645.2,3644.6,0.05652835]
[1736155758443,1.14880764,3645.2,3644.7,0.15357744]
[1736155758737,1.14880764,3645.2,3644.8,0.03005491]
[1736155758935,1.14880764,3645.2,3644.8,0.02743441]
[1736155759114,1.14880764,3645.2,3644.9,0.02798877]
[1736155759300,1.14880764,3645.2,3644.9,0.16820233]
[1736155759701,1.14880764,3645.5,3644.9,0.16820233]
[1736155759968,1.14880764,3645.5,3645.1,1.19313839]
[1736155760423,1.14880764,3645.5,3645.2,0.027893]
[1736155761033,0.118,3645.7,3645.2,0.027893]
[1736155761250,2.74291,3645.8,3645.2,0.4383715]
[1736155761798,1.14880764,3645.9,3645.2,0.4383715]
[1736155762047,1.14880764,3645.9,3645.3,1.19313839]
[1736155762204,1.14880764,3646.0,3645.7,1.19313839]
[1736155762901,1.14880764,3646.0,3645.8,0.02728919]
[1736155763107,1.14880764,3646.0,3645.4,0.02742721]
[1736155763423,1.14880764,3646.0,3645.9,0.02722674]
[1736155763624,1.14880764,3646.0,3645.6,2.74302]
[1736155763853,1.14880764,3646.0,3645.9,0.0271598]
[1736155764020,1.14880764,3646.5,3645.7,0.27704472]
[1736155764220,1.14880764,3646.5,3645.9,0.02903562]
[1736155764439,1.14880764,3646.5,3645.8,0.02910253]
[1736155764645,1.14880764,3646.5,3646.0,0.02896872]
[1736155764939,1.14880764,3646.5,3646.1,0.02890182]
[1736155765104,1.14880764,3646.5,3645.9,0.56915556]
[1736155765308,2.74236,3646.5,3646.2,0.02883493]
[1736155765633,2.74236,3646.5,3645.6,2.64238831]
[1736155765809,2.74236,3646.5,3646.3,0.02866614]
[1736155766010,2.74236,3646.5,3645.7,0.65334155]
[1736155766011,2.74236,3646.5,3645.6,2.64238831]
[1736155766545,2.74236,3646.5,3645.7,0.02904112]
[1736155768951,2.74236,3646.5,3645.8,35.0]
[1736155769248,2.74236,3646.5,3645.8,35.02897421]
[1736155769446,2.74236,3646.5,3645.8,37.74655013]
[1736155770945,2.74236,3646.5,3645.8,35.02897421]
[1736155773949,0.8306,3646.4,3645.8,0.02897421]
[1736155774126,0.8306,3646.4,3645.5,2.7431]
[1736155774326,0.8306,3646.4,3645.9,0.02838634]
[1736155774538,0.8306,3646.4,3645.6,35.0]
[1736155774739,0.8306,3646.4,3646.0,0.02831944]
[1736155775048,3.57303,3646.4,3645.6,37.71757592]
[1736155775251,3.57303,3646.4,3646.1,0.02823745]
[1736155775428,3.57303,3646.4,3645.6,35.0]
[1736155775623,3.57303,3646.4,3646.2,0.02817055]
[1736155775831,3.57303,3646.4,3645.6,35.0]
[1736155776152,3.57303,3646.4,3645.7,2.71757592]
[1736155776314,3.57303,3646.4,3645.7,2.74611872]
[1736155779251,3.57303,3646.4,3645.7,0.0285428]
[1736155779448,3.57303,3646.4,3645.8,35.0]
[1736155779952,3.57303,3646.4,3645.9,0.02840899]
[1736155782955,3.57303,3646.4,3645.5,2.7431]
[1736155783157,3.57303,3646.4,3646.0,0.02828548]
[1736155783471,3.57303,3646.4,3646.0,35.0]
[1736155783669,3.57303,3646.4,3646.1,0.02821858]
[1736155784130,2.74253,3646.3,3646.1,0.02821858]
[1736155785943,2.73922677,3646.3,3646.1,0.02821858]
[1736155786958,2.73922677,3646.3,3645.5,1.19245403]
[1736155787145,2.73922677,3646.3,3646.2,0.02809508]
[1736155787347,2.73922677,3646.3,3646.2,35.0]
[1736155787559,2.73922677,3646.3,3646.2,35.02809508]
[1736155787759,2.73922677,3646.3,3646.2,0.02809508]
[1736155787959,2.73922677,3646.3,3645.5,1.19245403]
[1736155788142,2.73922677,3646.3,3646.2,0.02809508]
[1736155788347,2.73922677,3646.3,3645.7,35.0]
[1736155788546,2.73922677,3646.3,3646.2,0.02809508]
[1736155788744,2.73922677,3646.3,3645.7,35.0]
[1736155788943,2.73922677,3646.3,3646.2,0.02809508]
[1736155789147,2.73922677,3646.3,3645.7,35.0]
[1736155789362,2.74276,3646.0,3645.7,35.0]
[1736155793170,0.7609,3646.2,3645.7,35.0]
[1736155793338,2.74268,3646.1,3645.7,35.0]
[1736155795783,0.7739,3645.8,3645.7,35.0]
[1736155797347,3.51678,3645.8,3645.7,35.0]
[1736155798984,3.51678,3645.8,3645.3,0.28532417]
[1736155798985,4.5377034,3645.8,3645.3,0.28532417]
[1736155799188,4.73423403,3645.4,3645.3,0.28532417]
[1736155799685,4.73423403,3645.4,3645.3,35.28532417]
[1736155799986,4.73423403,3645.4,3645.3,35.31412332]
[1736155800848,4.73423403,3645.4,3645.3,35.02879915]
[1736155802649,4.73423403,3645.4,3645.3,0.02879915]
[1736155803154,4.73423403,3645.4,3645.3,35.02879915]
[1736155804761,5.28423403,3645.4,3645.3,35.02879915]
[1736155804963,6.08695943,3645.4,3645.3,35.02879915]
[1736155805162,9.08695943,3645.4,3645.3,0.02879915]
[1736155806588,10.27941346,3645.4,3645.3,0.02879915]
[1736155807286,11.4282211,3645.4,3645.3,0.02879915]
[1736155809896,10.27941346,3645.4,3645.3,0.02879915]
[1736155812105,9.20495943,3645.4,3645.3,0.02879915]
[1736155812482,9.20495943,3645.4,3645.3,35.02879915]
[1736155813007,9.20495943,3645.4,3645.3,0.02879915]
[1736155814507,10.39741346,3645.4,3645.3,0.02879915]
[1736155817611,4.3795,3645.3,3644.4,35.0]
[1736155817811,2.74371,3644.7,3644.4,37.71757592]
[1736155818023,2.74371,3644.7,3644.5,0.02940442]
[1736155818516,2.74378,3644.6,3644.5,0.02940442]
[1736155818810,2.74378,3644.6,3644.5,35.0]
[1736155819314,2.74378,3644.6,3644.5,35.02940442]
[1736155821102,2.74378,3644.6,3644.5,0.02940442]
[1736155821304,2.74378,3644.6,3644.3,0.28570043]
[1736155821613,2.74378,3644.6,3644.4,35.0]
[1736155822138,2.74378,3644.6,3644.5,0.02940442]
[1736155826008,3.93623403,3644.6,3644.5,0.02940442]
[1736155826940,3.93623403,3644.6,3644.4,35.0]
[1736155827087,3.29386,3644.5,3644.4,35.0]
[1736155827290,3.50993,3644.4,3644.3,0.28570043]
[1736155827605,5.25238403,3644.4,3644.3,0.28570043]
[1736155827826,6.10730307,3644.4,3643.5,35.0]
[1736155828124,2.74432,3643.9,3643.5,35.0]
[1736155828684,1.19245403,3644.1,3643.5,35.0]
[1736155828969,2.74448,3643.7,3643.5,35.0]
[1736155829083,3.93693403,3643.7,3643.5,35.0]
[1736155829296,2.74448,3643.7,3643.5,35.0]
[1736155830296,2.74453,3643.6,3643.5,35.0]
[1736155830507,2.74453,3643.6,3643.5,30.0]
[1736155832291,2.74453,3643.6,3643.1,0.29142942]
[1736155832691,1.74245403,3643.7,3643.2,35.0]
[1736155832907,2.74462,3643.5,3643.2,35.0]
[1736155834925,3.93707403,3643.5,3643.2,35.0]
[1736155835128,0.8147,3643.4,3643.2,35.0]
[1736155835428,1.19245403,3643.3,3643.2,35.0]
[1736155835725,3.93721403,3643.3,3643.2,35.0]
[1736155836463,1.19245403,3643.3,3643.1,0.29162957]
[1736155836729,2.74483,3643.2,3643.1,0.29162957]
[1736155836930,2.74483,3643.2,3643.1,35.29162957]
[1736155838334,3.5594,3643.4,3643.1,35.29162957]
[1736155839631,0.8147,3643.4,3643.1,35.29162957]
[1736155839934,2.74476,3643.3,3643.1,35.29162957]
[1736155840438,0.7827,3643.2,3643.1,0.29162957]
[1736155840642,3.52753,3643.2,3643.1,0.29162957]
[1736155840942,3.52753,3643.2,3643.1,35.29162957]
[1736155841235,3.52753,3643.2,3643.1,35.32061813]
[1736155841638,4.0874201,3643.2,3643.1,35.32061813]
[1736155841835,4.6374201,3643.2,3643.1,0.32061813]
[1736155842016,5.22040751,3643.2,3643.1,0.32061813]
[1736155842214,5.22040751,3643.2,3643.1,0.29162957]
[1736155844538,5.19590751,3643.2,3643.1,0.29162957]
[1736155844837,5.19590751,3643.2,3643.1,0.005]
[1736155845821,2.7447,3643.4,3643.1,0.005]
[1736155846014,0.118,3643.5,3643.1,0.005]
[1736155846243,4.05509403,3643.5,3643.2,0.02821089]
[1736155846440,4.05509403,3643.5,3643.3,35.0]
[1736155846610,0.54736262,3643.4,3643.3,35.0]
[1736155847641,0.54736262,3643.4,3643.1,0.005]
[1736155847642,2.74479,3643.3,3643.1,0.005]
[1736155848028,2.74483,3643.2,3643.1,0.005]
[1736155848409,2.74483,3643.2,3643.1,35.005]
[1736155849749,2.74483,3643.2,3643.1,0.005]
[1736155849952,5.39234527,3643.2,3643.1,0.005]
[1736155850117,6.21284527,3643.2,3643.1,0.005]
[1736155850315,7.17513106,3643.2,3643.1,0.005]
[1736155851728,12.66493106,3643.2,3643.1,0.005]
[1736155852047,13.21493106,3643.2,3643.1,0.005]
[1736155857847,16.21493106,3643.2,3643.1,1e-05]
[1736155859317,13.56741579,3643.2,3643.1,1e-05]
[1736155859523,13.13541579,3643.2,3643.1,1e-05]
[1736155859723,13.01741579,3643.2,3643.1,1e-05]
[1736155860029,10.01741579,3643.2,3643.1,1e-05]
[1736155860235,8.35263,3643.2,3643.1,1e-05]
[1736155867570,5.4898,3643.2,3643.1,1e-05]
[1736155868162,5.4898,3643.2,3643.1,0.02852229]
[1736155871404,5.4898,3643.2,3643.1,2.77343229]
[1736155873713,5.4898,3643.2,3643.1,3.72244908]
[1736155873849,5.4898,3643.2,3643.1,5.06305731]
[1736155876285,5.4898,3643.2,3643.1,6.48681209]
[1736155881809,5.4898,3643.2,3643.1,4.11404052]
[1736155882006,5.4898,3643.2,3643.1,2.77343229]
[1736155887411,5.4898,3643.2,3643.1,3.72166879]
[1736155888297,5.4898,3643.2,3643.1,2.77343229]
[1736155893007,5.4898,3643.2,3643.1,3.96744204]
[1736155894593,5.4898,3643.2,3643.1,6.96744204]
[1736155894793,5.4898,3643.2,3643.1,8.1955528]
[1736155896215,5.4898,3643.2,3643.1,10.56440288]
[1736155896820,0.822,3644.2,3643.2,3.0]
[1736155897022,0.822,3644.2,3643.6,1.19400975]
[1736155897388,0.822,3644.2,3643.7,0.03452616]
[1736155897926,0.822,3644.2,3643.5,2.7446]
[1736155898224,0.822,3644.2,3643.4,4.19400975]
[1736155898522,0.822,3644.2,3643.5,0.03469668]
[1736155900127,0.822,3644.2,3643.5,2.77929668]
[1736155900425,0.822,3644.2,3643.5,0.03469668]
[1736155900804,1.190397,3644.2,3643.5,0.03469668]
[1736155903729,1.190397,3644.2,3643.5,2.77929668]
[1736155903938,0.822,3644.2,3643.5,2.77929668]
[1736155904242,0.822,3644.2,3643.6,2.74452]
[1736155904532,0.822,3644.2,3643.7,0.03445407]
[1736155904718,0.822,3644.2,3643.6,2.74452]
[1736155904920,0.822,3644.2,3643.7,0.03445407]
[1736155905118,0.822,3644.2,3643.6,2.74452]
[1736155905322,0.822,3644.2,3643.7,0.03445407]
[1736155905629,0.822,3644.2,3643.6,2.74452]
[1736155905825,0.822,3644.2,3643.8,0.03436882]
[1736155906030,0.822,3644.2,3643.7,35.03445407]
[1736155906335,0.822,3644.2,3643.8,0.03436882]
[1736155906498,0.822,3644.2,3643.6,2.74452]
[1736155906833,0.822,3644.2,3643.7,35.03445407]
[1736155907799,1.190388,3644.2,3643.7,35.03445407]
[1736155907998,0.8318,3644.0,3643.7,35.03445407]
[1736155908402,3.57604,3644.0,3643.7,35.03445407]
[1736155908596,4.77004975,3644.0,3643.7,35.03445407]
[1736155914051,0.8318,3644.0,3643.7,35.03445407]
[1736155916644,1.68838077,3644.0,3643.7,35.03445407]
[1736155917148,4.43262077,3644.0,3643.7,35.03445407]
[1736155917345,5.62663052,3644.0,3643.7,35.03445407]
[1736155917924,5.62663052,3644.0,3643.7,0.03445407]
[1736155918123,5.62663052,3644.0,3643.2,1.14657263]
[1736155918335,5.62663052,3644.0,3643.3,0.0349778]
[1736155918637,5.62663052,3644.0,3643.3,35.0349778]
[1736155919026,6.77514502,3644.0,3643.4,2.37829588]
[1736155919429,6.77514502,3644.0,3643.5,0.03480727]
[1736155919632,6.77514502,3644.0,3643.6,35.0]
[1736155920018,6.77514502,3644.0,3643.7,0.03463675]
[1736155920426,4.03090502,3644.0,3643.6,35.0]
[1736155920720,3.17432425,3644.0,3643.7,0.03463675]
[1736155920939,3.17432425,3644.0,3643.6,35.0]
[1736155921145,3.17432425,3644.0,3643.7,0.03463675]
[1736155921422,3.17432425,3644.0,3643.6,35.0]
[1736155921734,2.02580975,3644.0,3643.7,0.03463675]
[1736155921944,2.02580975,3644.0,3643.6,35.0]
[1736155922144,2.02580975,3644.0,3643.7,0.03463675]
[1736155922340,2.02580975,3644.0,3643.6,35.0]
[1736155922545,2.02580975,3644.0,3643.7,0.03175035]
[1736155922845,2.02580975,3644.0,3643.6,35.0]
[1736155923155,4.77004975,3644.0,3643.7,0.03175035]
[1736155923359,4.77004975,3644.0,3643.6,35.0]
[1736155923533,5.91856425,3644.0,3643.7,0.03175035]
[1736155923855,5.91856425,3644.0,3643.6,35.0]
[1736155924027,5.91856425,3644.0,3643.8,0.03167221]
[1736155924234,6.78727752,3644.0,3643.7,0.03175035]
[1736155924434,6.78727752,3644.0,3643.9,0.03159406]
[1736155924638,2.84902777,3644.0,3643.8,0.03167221]
[1736155924835,1.1485145,3644.0,3643.9,0.03159406]
[1736155925242,1.1485145,3644.0,3643.6,35.0]
[1736155925425,1.1485145,3644.0,3643.9,0.03159406]
[1736155925621,1.1485145,3644.0,3643.6,35.0]
[1736155925823,1.31200975,3644.1,3643.9,0.03159406]
[1736155926056,1.31200975,3644.1,3643.6,35.0]
[1736155926233,1.31200975,3644.1,3644.0,0.03148951]
[1736155926740,1.31200975,3644.1,3643.6,35.0]
[1736155926939,1.31200975,3644.1,3643.7,0.03172394]
[1736155927153,1.31200975,3644.1,3643.6,35.0]
[1736155927352,1.31200975,3644.1,3643.7,0.03172394]
[1736155927556,1.31200975,3644.1,3643.6,35.0]
[1736155927731,1.31200975,3644.1,3643.7,0.03172394]
[1736155928093,1.1485145,3644.2,3643.7,2.74443]
[1736155928291,1.1485145,3644.2,3644.0,1.19400975]
[1736155928444,1.1485145,3644.2,3644.1,2.74416]
[1736155928625,1.1485145,3644.2,3644.1,3.1756197]
[1736155929559,1.1485145,3644.9,3644.2,2.74405]
[1736155929765,1.1485145,3644.9,3644.3,0.03129038]
[1736155930710,2.00180975,3645.1,3644.4,2.3770132]
[1736155931005,2.00180975,3645.1,3644.5,0.03396452]
[1736155931143,0.8078,3645.1,3644.6,35.0]
[1736155931342,0.8078,3645.1,3644.7,0.03379409]
[1736155932499,3.55121,3645.1,3644.7,0.03379409]
[1736155932644,3.55121,3645.1,3644.4,0.95080528]
[1736155932845,3.55121,3645.1,3644.8,0.03370889]
[1736155933139,3.55121,3645.1,3644.4,35.0]
[1736155933344,3.55121,3645.1,3644.5,0.03396452]
[1736155933941,3.54790623,3645.1,3644.5,0.03396452]
[1736155934997,3.54790623,3645.1,3644.5,0.50305641]
[1736155935691,0.80449623,3645.1,3644.5,0.50305641]
[1736155935891,1.1485145,3645.4,3644.5,0.50305641]
[1736155936074,1.1485145,3645.4,3644.6,2.74377]
[1736155936271,1.1485145,3645.4,3644.6,2.77120208]
[1736155936472,1.1485145,3645.4,3644.7,2.75784568]
[1736155936674,1.1485145,3645.4,3644.8,0.02743019]
[1736155937073,1.1485145,3645.4,3644.9,0.04006149]
[1736155937804,0.9138,3645.5,3644.9,0.04006149]
[1736155938209,0.9138,3645.5,3645.0,35.0]
[1736155938414,0.9138,3645.5,3645.0,35.03995736]
[1736155939209,3.65691,3645.5,3645.0,35.03995736]
[1736155939504,0.9138,3645.5,3645.0,35.03995736]
[1736155941411,0.7958,3645.5,3645.0,35.03995736]
[1736155941639,0.118,3645.7,3645.1,2.5394186]
[1736155941821,0.118,3645.7,3645.0,2.78341736]
[1736155941991,0.118,3645.7,3645.1,35.0]
[1736155942375,0.7882,3645.8,3645.1,35.0]
[1736155942580,2.02394467,3646.1,3645.1,35.0]
[1736155942776,0.875,3646.1,3645.4,2.74317]
[1736155943083,0.875,3646.1,3645.2,2.71757592]
[1736155943282,0.875,3646.1,3645.3,2.74325]
[1736155944200,0.875,3646.1,3645.4,2.74317]
[1736155944519,0.2488,3646.3,3645.5,3.03400457]
[1736155944687,0.2488,3646.3,3645.6,2.74298]
[1736155944877,0.2488,3646.3,3645.7,35.0]
[1736155945639,0.2488,3646.3,3645.7,37.74293]
[1736155946844,0.8211,3646.2,3645.7,35.0]
[1736155947012,0.8211,3646.2,3645.5,0.29093457]
[1736155947220,2.74269,3646.1,3645.0,5.7434]
[1736155947425,2.74274,3646.0,3645.1,35.0]
[1736155947639,0.8211,3646.2,3645.3,2.74319]
[1736155948306,0.8211,3646.2,3645.4,35.0]
[1736155949511,0.8211,3646.2,3645.4,37.74317]
[1736155949717,0.8211,3646.2,3645.5,2.71757592]
[1736155952015,2.74266,3646.1,3645.4,35.0]
[1736155952238,2.64460821,3646.1,3645.4,35.0]
[1736155952410,0.7977,3645.7,3645.4,35.0]
[1736155955335,0.8012,3646.1,3645.4,35.0]
[1736155955847,0.8012,3646.1,3645.5,2.71757592]
[1736155958071,3.54386,3646.1,3645.4,35.0]
[1736155959762,0.8012,3646.1,3645.4,35.0]
[1736155977028,0.8012,3646.1,3645.4,37.74316]
[1736155978348,0.8012,3646.1,3645.5,0.94688238]
[1736155978509,0.8012,3646.1,3645.5,2.71757592]
[1736155980048,0.8012,3646.1,3645.5,4.13821567]
[1736155981452,0.8012,3646.1,3645.6,0.94778912]
[1736155981950,0.8012,3646.1,3645.7,35.0]
[1736155982946,0.8012,3646.1,3645.7,35.94778912]
[1736155984283,0.8012,3646.1,3645.8,3.66536504]
[1736155984489,0.8012,3646.1,3645.8,0.94778912]
[1736155985339,0.8012,3646.1,3645.9,2.37117778]
[1736155986289,0.8012,3646.1,3645.8,1.42338866]
[1736155986582,0.8012,3646.1,3645.7,36.14538856]
[1736155986748,0.8012,3646.1,3646.0,1.19264693]
[1736155987160,0.8012,3646.1,3645.8,1.19264693]
[1736155987337,0.8012,3646.1,3645.8,3.91022285]
[1736155988366,0.8012,3646.1,3645.8,6.65310285]
[1736155988567,0.8012,3646.1,3646.0,0.94883956]
[1736155989744,0.8012,3646.1,3645.9,2.3720989]
[1736155989958,0.8012,3646.1,3646.0,0.86910495]
[1736155990679,0.2488,3646.3,3646.0,2.06175188]
[1736155991971,0.2488,3646.3,3646.1,35.0]
[1736155992887,0.2488,3646.3,3645.6,0.00135266]
[1736155992888,0.7644,3646.2,3645.6,0.00135266]
[1736155993283,0.7644,3646.2,3645.6,35.00135266]
[1736155993601,0.7644,3646.2,3645.6,37.71892858]
[1736155994479,0.7644,3646.2,3645.7,1.14724806]
[1736155995202,0.7644,3646.2,3645.8,35.0]
[1736155995846,0.7644,3646.2,3645.8,35.94865759]
[1736155997266,0.7644,3646.2,3645.9,0.94865759]
[1736155997788,0.7644,3646.2,3645.7,2.33989499]
[1736155997789,0.7644,3646.2,3645.7,1.19264693]
[1736155997962,0.7644,3646.2,3646.0,35.0]
[1736156000893,0.7644,3646.2,3645.7,1.19264693]
[1736156001189,0.7644,3646.2,3645.7,2.33979244]
[1736156001355,0.7644,3646.2,3645.8,35.0]
[1736156002564,0.7644,3646.2,3645.9,0.94893117]
[1736156002770,0.7644,3646.2,3645.7,1.19264693]
[1736156003169,0.7644,3646.2,3645.8,35.0]
[1736156003768,0.7644,3646.2,3645.8,37.71757592]
[1736156004093,0.2488,3646.3,3646.1,1.19264693]
[1736156005809,0.2488,3646.3,3646.1,2.61612166]
[1736156006169,0.2488,3646.3,3646.2,2.74258]
[1736156006799,0.2488,3646.3,3646.2,3.69125829]
[1736156007106,0.2488,3646.3,3646.2,4.43676371]
[1736156007425,0.2488,3646.3,3646.2,39.43676371]
[1736156008103,0.2488,3646.3,3646.2,40.86023844]
[1736156008919,0.2488,3646.3,3646.2,38.11765844]
[1736156009075,1.0328,3646.3,3646.2,37.37215302]
[1736156009713,1.0328,3646.3,3646.2,38.51856846]
[1736156011013,1.0328,3646.3,3646.2,35.94867829]
[1736156013006,0.2488,3646.3,3646.2,35.94867829]
[1736156013188,0.2488,3646.3,3646.2,38.66625421]
[1736156014345,0.2488,3646.3,3646.2,40.08823601]
[1736156018192,0.2488,3646.3,3646.2,41.23465145]
[1736156019712,0.2488,3646.3,3646.2,40.08823601]
[1736156030669,0.2488,3646.3,3646.2,41.23465145]
[1736156035168,1.0555,3646.3,3646.2,41.23465145]
[1736156035460,1.0555,3646.3,3646.2,3.51707553]
[1736156035828,1.0555,3646.3,3646.2,38.51707553]
[1736156036032,1.0555,3646.3,3646.2,39.70972246]
[1736156036367,0.2488,3646.3,3646.2,39.70972246]
[1736156036581,0.2488,3646.3,3646.2,42.45230246]
[1736156036735,0.2488,3646.3,3646.2,45.16987838]
[1736156037064,0.2488,3646.3,3646.2,41.65280285]
[1736156038439,0.2488,3646.3,3646.2,45.16987838]
[1736156040967,0.2488,3646.3,3646.2,42.42729838]
[1736156041177,0.2488,3646.3,3646.2,41.23465145]
[1736156041568,0.2488,3646.3,3646.2,38.51707553]
[1736156042958,0.2488,3646.3,3646.2,35.94867829]
[1736156046680,2.9913,3646.3,3646.2,35.94867829]
[1736156046852,3.8104,3646.3,3646.2,0.94867829]
[1736156047411,1.0679,3646.3,3646.2,0.94867829]
[1736156048147,1.0679,3646.3,3646.1,35.0]
[1736156048760,2.74258,3646.2,3645.9,0.28651457]
[1736156048964,0.797,3646.1,3645.9,0.28651457]
[1736156049401,0.797,3646.1,3645.9,35.28651457]
[1736156051601,0.797,3646.1,3645.9,35.28651457]
[1736156051914,1.40011622,3646.3,3645.9,35.28651457]
[1736156051915,0.2488,3646.3,3646.0,1.19264693]
[1736156052101,0.2488,3646.3,3646.2,1.19264693]
[1736156052609,0.2488,3646.3,3646.2,36.19264693]
[1736156052814,0.2488,3646.3,3646.2,35.0]
[1736156054003,0.2488,3646.3,3646.2,37.3732056]
[1736156055503,0.2488,3646.3,3646.2,35.94928224]
[1736156056273,1.0295,3646.3,3646.2,0.94928224]
[1736156056481,3.772,3646.3,3646.2,0.94928224]
[1736156056683,4.1609,3646.3,3645.9,1.43293001]
[1736156057012,3.772,3646.3,3645.9,36.43293001]
[1736156058224,3.772,3646.3,3645.9,35.28651457]
[1736156059527,1.0295,3646.3,3645.9,35.28651457]
[1736156059897,0.2488,3646.3,3645.9,35.28651457]
[1736156060103,0.2488,3646.3,3646.0,2.71757592]
[1736156060794,0.2488,3646.3,3646.0,3.66676759]
[1736156061137,0.2488,3646.3,3646.0,0.94919167]
[1736156062430,0.2488,3646.3,3646.1,0.94919167]
[1736156063426,0.2488,3646.3,3646.2,35.0]
[1736156067229,0.2488,3646.3,3646.2,37.74258]
[1736156068490,0.2488,3646.3,3646.2,35.0]
[1736156068790,0.2488,3646.3,3646.2,37.71757592]
[1736156073536,0.2488,3646.3,3646.2,41.23833413]
[1736156074834,0.2488,3646.3,3646.2,43.98091413]
[1736156075437,0.2488,3646.3,3646.2,42.83303575]
[1736156076339,0.2488,3646.3,3646.2,40.09045575]
[1736156077306,0.2488,3646.3,3646.2,41.23723337]
[1736156078340,0.2488,3646.3,3646.2,40.09045575]
[1736156080755,0.2488,3646.3,3646.2,41.23723337]
[1736156091159,0.2488,3646.3,3646.2,43.97981337]
[1736156095042,0.2488,3646.3,3646.2,45.1718269]
[1736156096090,0.2488,3646.3,3646.2,42.4292469]
[1736156098397,0.2488,3646.3,3646.2,41.28246928]
[1736156098596,0.2488,3646.3,3646.2,44.02504928]
[1736156101892,0.2488,3646.3,3646.2,41.28246928]
[1736156105713,0.2488,3646.3,3646.2,44.90263193]
[1736156107974,0.2488,3646.3,3646.2,47.64521193]
[1736156108168,0.2488,3646.3,3646.2,45.92370054]
[1736156108662,0.2488,3646.3,3646.2,50.11571407]
[1736156108867,0.2488,3646.3,3646.2,48.92370054]
[1736156110203,0.24549804,3646.3,3646.2,48.92370054]
[1736156110403,0.24549804,3646.3,3646.2,50.11571407]
[1736156112596,0.24549804,3646.3,3646.2,52.98541002]
[1736156113116,0.24549804,3646.3,3646.2,51.79339649]
[1736156113715,0.24549804,3646.3,3646.2,52.98541002]
[1736156114119,0.24549804,3646.3,3646.2,50.60138296]
[1736156114291,0.24549804,3646.3,3646.2,51.79339649]
[1736156114824,0.24549804,3646.3,3646.2,46.05081649]
[1736156116321,0.24549804,3646.3,3646.2,44.90450355]
[1736156117132,0.24549804,3646.3,3646.2,43.71249002]
[1736156117299,0.24549804,3646.3,3646.2,40.9949141]
[1736156117987,1.04999804,3646.3,3646.2,40.9949141]
[1736156118726,1.04999804,3646.3,3646.2,37.37287983]
[1736156119088,1.04999804,3646.3,3646.2,2.37287983]
[1736156120220,1.04999804,3646.3,3646.2,37.37287983]
[1736156122409,1.04999804,3646.3,3646.2,35.94915193]
[1736156123361,1.04999804,3646.3,3646.2,35.0]
[1736156127742,0.24549804,3646.3,3646.2,35.0]
[1736156129139,0.24549804,3646.3,3646.2,35.94937115]
[1736156130848,0.24549804,3646.3,3646.2,35.0]
[1736156132420,0.62667884,3646.3,3646.2,35.0]
[1736156134465,0.7506,3646.2,3645.9,0.28651457]
[1736156134857,0.7506,3646.2,3646.0,35.0]
[1736156143875,0.24549804,3646.3,3646.1,1.19249427]
[1736156144681,0.24549804,3646.3,3646.2,35.0]
[1736156157528,0.24549804,3646.3,3645.9,2.62825924]
[1736156158184,0.7525,3646.2,3645.9,1.43576497]
[1736156158597,0.7525,3646.2,3645.9,37.62825924]
[1736156159192,0.7525,3646.2,3646.0,0.94961188]
[1736156160427,0.7525,3646.2,3646.0,1.42441783]
[1736156161731,0.7525,3646.2,3646.1,0.95040378]
[1736156161900,5.84600512,3646.2,3646.1,0.95040378]
[1736156162106,5.90740512,3646.2,3646.1,0.95040378]
[1736156163123,8.30369427,3645.9,3645.8,1.1492504]
[1736156163424,9.76916478,3645.9,3645.8,1.1492504]
[1736156163629,7.07505,3645.7,3645.6,0.00135266]
[1736156163932,8.26754427,3645.7,3645.6,0.00135266]
[1736156164820,13.66162347,3645.7,3645.6,0.00135266]
[1736156165021,15.73615948,3645.7,3645.6,0.00135266]
[1736156166627,14.2969112,3645.7,3645.6,0.00135266]
[1736156168930,12.57228675,3645.7,3645.6,0.00135266]
[1736156170207,13.72083043,3645.7,3645.6,0.00135266]
[1736156172852,12.57228675,3645.7,3645.6,0.00135266]
[1736156174225,11.247381,3645.7,3645.6,0.00135266]
[1736156177358,10.34208028,3645.7,3645.6,0.00135266]
[1736156179170,2.74335,3645.2,3644.9,35.0]
[1736156179359,0.55,3645.1,3644.9,35.0]
[1736156180873,0.8108,3645.0,3644.1,1.19249427]
[1736156181073,3.76635943,3645.0,3644.1,1.19249427]
[1736156181369,4.31635943,3645.0,3644.9,35.0]
[1736156181576,4.10433,3645.0,3644.9,35.0]
[1736156182148,4.10433,3645.0,3644.1,1.19249427]
[1736156182669,4.10433,3645.0,3644.2,35.0]
[1736156183949,1.3608,3645.0,3644.2,35.0]
[1736156185875,1.3608,3645.0,3644.1,3.93665427]
[1736156186170,1.3608,3645.0,3644.8,35.28657467]
[1736156187276,0.55,3645.0,3644.8,35.28657467]